[Event "*** Titled Tuesday 3|2 Blitz"]
[Site "Chess.com"]
[Date "2015.10.06"]
[Round "3"]
[White "Bab3s"]
[Black "Assasin14"]
[Result "1-0"]
[WhiteElo "2128"]
[BlackElo "1737"]
[TimeControl "180+2"]
[EndTime "17:31:55 PDT"]
[Termination "Bab3s won by checkmate"]

1. e4 {[%clk 0:03:01.9]} 1... c5 {[%clk 0:03:00.5]} 2. c3 {[%clk 0:03:02.3]}
2... d5 {[%clk 0:03:00.8]} 3. exd5 {[%clk 0:03:04.2]} 3... Qxd5 {[%clk
0:03:02.3]} 4. d4 {[%clk 0:03:05.5]} 4... Nf6 {[%clk 0:03:02]} 5. Nf3 {[%clk
0:03:06.7]} 5... Bg4 {[%clk 0:03:02.6]} 6. Nbd2 {[%clk 0:03:07.4]} 6... e6
{[%clk 0:02:57.3]} 7. Bc4 {[%clk 0:02:54.1]} 7... Qd7 {[%clk 0:02:27.4]} 8. Qb3
{[%clk 0:02:47.3]} 8... Nc6 {[%clk 0:02:25.5]} 9. Ne5 {[%clk 0:02:39.8]} 9...
Qc7 {[%clk 0:01:58.9]} 10. O-O {[%clk 0:02:22.2]} 10... Nxe5 {[%clk 0:01:53]}
11. dxe5 {[%clk 0:02:21.8]} 11... Nd7 {[%clk 0:01:53.3]} 12. Bb5 {[%clk
0:02:16.9]} 12... a6 {[%clk 0:01:49.1]} 13. Qa4 {[%clk 0:02:13.7]} 13... Rd8
{[%clk 0:01:42.5]} 14. Bxd7+ {[%clk 0:02:11.3]} 14... Rxd7 {[%clk 0:01:31.4]}
15. Qxg4 {[%clk 0:02:11.9]} 15... Qxe5 {[%clk 0:01:23]} 16. Nf3 {[%clk
0:02:07.7]} 16... Qc7 {[%clk 0:01:17.8]} 17. Bf4 {[%clk 0:02:05]} 17... Qb6
{[%clk 0:01:16.4]} 18. Rad1 {[%clk 0:02:01.7]} 18... Rxd1 {[%clk 0:01:16.1]} 19.
Rxd1 {[%clk 0:02:02.2]} 19... Qxb2 {[%clk 0:01:17]} 20. Bg5 {[%clk 0:01:39.1]}
20... Be7 {[%clk 0:01:01.8]} 21. Bxe7 {[%clk 0:01:38.2]} 21... Kxe7 {[%clk
0:01:01.9]} 22. Qg5+ {[%clk 0:01:36.8]} 22... f6 {[%clk 0:00:55]} 23. Qxg7+
{[%clk 0:01:36.6]} 23... Ke8 {[%clk 0:00:56]} 24. Qxh8+ {[%clk 0:01:36.9]} 24...
Kf7 {[%clk 0:00:56.6]} 25. Rd7+ {[%clk 0:01:32.7]} 25... Kg6 {[%clk 0:00:58.5]}
26. Qxh7# {[%clk 0:01:33]} 1-0

[Event "*** Titled Tuesday 3|2 Blitz"]
[Site "Chess.com"]
[Date "2015.10.06"]
[Round "3"]
[White "Penguininja"]
[Black "Makalexa"]
[Result "1/2-1/2"]
[WhiteElo "2153"]
[BlackElo "2044"]
[TimeControl "180+2"]
[EndTime "17:32:24 PDT"]
[Termination "Game drawn by agreement"]

1. d4 {[%clk 0:03:01.9]} 1... Nf6 {[%clk 0:02:59.1]} 2. Nf3 {[%clk 0:03:01.6]}
2... g6 {[%clk 0:02:59.4]} 3. c4 {[%clk 0:03:02.9]} 3... Bg7 {[%clk 0:02:59.7]}
4. Nc3 {[%clk 0:03:04.4]} 4... c5 {[%clk 0:03:00.3]} 5. e3 {[%clk 0:02:59.8]}
5... O-O {[%clk 0:02:58.2]} 6. Be2 {[%clk 0:03:00.6]} 6... cxd4 {[%clk 0:02:57]}
7. Nxd4 {[%clk 0:03:02.5]} 7... Nc6 {[%clk 0:02:52.1]} 8. O-O {[%clk 0:03:02.4]}
8... d6 {[%clk 0:02:42.4]} 9. b3 {[%clk 0:02:58.9]} 9... Bd7 {[%clk 0:02:36]}
10. Bb2 {[%clk 0:02:58.7]} 10... Rc8 {[%clk 0:02:34.8]} 11. Qd2 {[%clk
0:02:42.3]} 11... a6 {[%clk 0:02:35.3]} 12. Rfd1 {[%clk 0:02:38]} 12... Qc7
{[%clk 0:02:33.5]} 13. Rac1 {[%clk 0:02:37.5]} 13... Ne5 {[%clk 0:02:25.9]} 14.
h3 {[%clk 0:02:30.9]} 14... Qb8 {[%clk 0:02:25.8]} 15. a4 {[%clk 0:02:10.1]}
15... Rc7 {[%clk 0:02:06.9]} 16. Nf3 {[%clk 0:01:51.1]} 16... Nxf3+ {[%clk
0:02:04.2]} 17. Bxf3 {[%clk 0:01:53]} 17... Rfc8 {[%clk 0:02:05]} 18. g4 {[%clk
0:01:28.5]} 18... h6 {[%clk 0:01:58.1]} 19. Kg2 {[%clk 0:01:12.7]} 19... b5
{[%clk 0:01:58.1]} 20. axb5 {[%clk 0:01:11.8]} 20... axb5 {[%clk 0:01:59.4]} 21.
Nd5 {[%clk 0:01:07.9]} 21... Nxd5 {[%clk 0:01:58]} 22. cxd5 {[%clk 0:00:40.8]}
1/2-1/2

[Event "*** Titled Tuesday 3|2 Blitz"]
[Site "Chess.com"]
[Date "2015.10.06"]
[Round "3"]
[White "Mornar1951"]
[Black "zmaj23"]
[Result "1-0"]
[WhiteElo "2609"]
[BlackElo "2314"]
[TimeControl "180+2"]
[EndTime "17:33:10 PDT"]
[Termination "Mornar1951 won by resignation"]

1. Nf3 {[%clk 0:03:01.9]} 1... c5 {[%clk 0:03:00.6]} 2. c4 {[%clk 0:03:02.9]}
2... g6 {[%clk 0:03:01.4]} 3. d4 {[%clk 0:03:03.4]} 3... cxd4 {[%clk 0:03:02.1]}
4. Nxd4 {[%clk 0:03:05.3]} 4... Nc6 {[%clk 0:02:55.6]} 5. e4 {[%clk 0:03:04.2]}
5... Bg7 {[%clk 0:02:49.6]} 6. Be3 {[%clk 0:03:05]} 6... d6 {[%clk 0:02:49.8]}
7. Nc3 {[%clk 0:03:04.9]} 7... Nf6 {[%clk 0:02:49.3]} 8. Be2 {[%clk 0:03:05.8]}
8... O-O {[%clk 0:02:47.7]} 9. O-O {[%clk 0:03:05.6]} 9... Bd7 {[%clk
0:02:43.6]} 10. Qd2 {[%clk 0:03:04.9]} 10... a6 {[%clk 0:02:41]} 11. Rfd1 {[%clk
0:02:58.3]} 11... Rc8 {[%clk 0:02:39.6]} 12. Rac1 {[%clk 0:02:58.3]} 12... Ne5
{[%clk 0:02:37.8]} 13. b3 {[%clk 0:02:56.5]} 13... Neg4 {[%clk 0:02:38.6]} 14.
Bg5 {[%clk 0:02:55.7]} 14... h6 {[%clk 0:02:38.2]} 15. Bh4 {[%clk 0:02:56.8]}
15... g5 {[%clk 0:02:18.3]} 16. Bg3 {[%clk 0:02:56.9]} 16... Nh5 {[%clk
0:02:18.4]} 17. Nf5 {[%clk 0:02:29.3]} 17... Bxf5 {[%clk 0:02:12.6]} 18. exf5
{[%clk 0:02:29.4]} 18... Ngf6 {[%clk 0:02:01.4]} 19. Bf3 {[%clk 0:02:18.6]}
19... Nxg3 {[%clk 0:02:00.4]} 20. hxg3 {[%clk 0:02:18.9]} 20... Qd7 {[%clk
0:01:41.2]} 21. g4 {[%clk 0:02:15.8]} 21... Rcd8 {[%clk 0:01:38]} 22. g3 {[%clk
0:02:13.9]} 22... e6 {[%clk 0:01:38.1]} 23. Qd3 {[%clk 0:02:05]} 23... Rfe8
{[%clk 0:01:25.5]} 24. Kg2 {[%clk 0:02:02.7]} 24... exf5 {[%clk 0:01:15.9]} 25.
Qxf5 {[%clk 0:02:01.6]} 25... Qxf5 {[%clk 0:01:14.5]} 26. gxf5 {[%clk
0:02:03.5]} 26... g4 {[%clk 0:01:15.5]} 27. Bxb7 {[%clk 0:02:02.6]} 27... Re5
{[%clk 0:01:01.2]} 28. Bxa6 {[%clk 0:01:51.7]} 28... Rxf5 {[%clk 0:01:01.2]} 29.
Nd5 {[%clk 0:01:46.8]} 29... Nxd5 {[%clk 0:00:58.5]} 30. Rxd5 {[%clk 0:01:48.7]}
30... Rf6 {[%clk 0:00:48.3]} 31. c5 {[%clk 0:01:44.3]} 31... Ra8 {[%clk
0:00:39.6]} 32. c6 {[%clk 0:01:44.2]} 32... Rxa6 {[%clk 0:00:33.2]} 33. c7
{[%clk 0:01:45.1]} 33... Ra8 {[%clk 0:00:29.5]} 34. c8=Q+ {[%clk 0:01:46.3]}
34... Rxc8 {[%clk 0:00:30.5]} 35. Rxc8+ {[%clk 0:01:47]} 35... Kh7 {[%clk
0:00:31.7]} 36. Rd8 {[%clk 0:01:47.1]} 36... Re6 {[%clk 0:00:29]} 37. R8xd6
{[%clk 0:01:46.6]} 37... Re2 {[%clk 0:00:30.7]} 38. Rd2 {[%clk 0:01:47.2]} 1-0

[Event "*** Titled Tuesday 3|2 Blitz"]
[Site "Chess.com"]
[Date "2015.10.06"]
[Round "3"]
[White "Zvonokchess"]
[Black "spirals5"]
[Result "0-1"]
[WhiteElo "2505"]
[BlackElo "2167"]
[TimeControl "180+2"]
[EndTime "17:33:32 PDT"]
[Termination "spirals5 won by resignation"]

1. Nf3 {[%clk 0:03:01.9]} 1... d5 {[%clk 0:03:00.6]} 2. g3 {[%clk 0:03:01.2]}
2... Nf6 {[%clk 0:03:01.2]} 3. Bg2 {[%clk 0:03:02.4]} 3... g6 {[%clk 0:03:02.4]}
4. O-O {[%clk 0:03:01.6]} 4... Bg7 {[%clk 0:03:03.4]} 5. d4 {[%clk 0:03:02.7]}
5... O-O {[%clk 0:03:04.3]} 6. c4 {[%clk 0:03:03.8]} 6... c6 {[%clk 0:03:05.4]}
7. cxd5 {[%clk 0:03:04.2]} 7... cxd5 {[%clk 0:03:06.2]} 8. Nc3 {[%clk 0:03:05]}
8... Nc6 {[%clk 0:03:05.4]} 9. Ne5 {[%clk 0:03:05.9]} 9... e6 {[%clk 0:02:57.4]}
10. Nxc6 {[%clk 0:03:06.3]} 10... bxc6 {[%clk 0:02:57.9]} 11. Na4 {[%clk
0:03:07.9]} 11... Nd7 {[%clk 0:02:56.6]} 12. Be3 {[%clk 0:03:07.4]} 12... Ba6
{[%clk 0:02:52.8]} 13. Rc1 {[%clk 0:03:02.1]} 13... Bb5 {[%clk 0:02:52.5]} 14.
Nc3 {[%clk 0:02:59.3]} 14... Qb6 {[%clk 0:02:49.6]} 15. Qd2 {[%clk 0:02:57.7]}
15... Rfc8 {[%clk 0:02:43.9]} 16. Nxb5 {[%clk 0:02:53.4]} 16... cxb5 {[%clk
0:02:43.6]} 17. b3 {[%clk 0:02:52.3]} 17... a5 {[%clk 0:02:41]} 18. a3 {[%clk
0:02:48.4]} 18... a4 {[%clk 0:02:39]} 19. Qb4 {[%clk 0:02:06.9]} 19... axb3
{[%clk 0:02:36.4]} 20. Qxb3 {[%clk 0:02:08.8]} 20... Qa6 {[%clk 0:02:36.8]} 21.
Rxc8+ {[%clk 0:02:04.2]} 21... Rxc8 {[%clk 0:02:36.7]} 22. Rb1 {[%clk
0:02:05.7]} 22... Bf8 {[%clk 0:02:28.8]} 23. Qxb5 {[%clk 0:02:03.4]} 23... Qxb5
{[%clk 0:02:29.3]} 24. Rxb5 {[%clk 0:02:05.3]} 24... Bxa3 {[%clk 0:02:30.2]} 25.
Rb7 {[%clk 0:02:06.4]} 25... Nf6 {[%clk 0:02:26.4]} 26. f3 {[%clk 0:01:59.4]}
26... Bc1 {[%clk 0:02:12.7]} 27. Bf2 {[%clk 0:01:48.6]} 27... Ne8 {[%clk
0:02:11.9]} 28. e4 {[%clk 0:01:41.8]} 28... dxe4 {[%clk 0:02:11.3]} 29. fxe4
{[%clk 0:01:40.4]} 29... Nd6 {[%clk 0:02:01.2]} 30. Rd7 {[%clk 0:01:40.4]} 30...
Nc4 {[%clk 0:02:01.8]} 31. d5 {[%clk 0:01:33]} 31... exd5 {[%clk 0:02:02.2]} 32.
exd5 {[%clk 0:01:33.6]} 32... Be3 {[%clk 0:02:02.6]} 33. d6 {[%clk 0:01:27.8]}
33... Bxf2+ {[%clk 0:02:00.5]} 34. Kxf2 {[%clk 0:01:29.7]} 34... Kf8 {[%clk
0:01:49.3]} 35. Rc7 {[%clk 0:01:27]} 35... Nxd6 {[%clk 0:01:49.6]} 36. Rd7
{[%clk 0:01:24]} 36... Ne8 {[%clk 0:01:46.2]} 37. Bd5 {[%clk 0:01:23.7]} 37...
Rc7 {[%clk 0:01:46.9]} 38. Rd8 {[%clk 0:01:23.5]} 38... Re7 {[%clk 0:01:47.8]}
39. Bc6 {[%clk 0:01:22.9]} 39... f5 {[%clk 0:01:46.2]} 40. Kf3 {[%clk
0:01:21.4]} 40... Kf7 {[%clk 0:01:46.9]} 41. Bd5+ {[%clk 0:01:19.8]} 41... Kg7
{[%clk 0:01:47.7]} 42. h4 {[%clk 0:01:16.1]} 42... Nf6 {[%clk 0:01:48]} 43. Bc4
{[%clk 0:01:14.3]} 43... h6 {[%clk 0:01:45.7]} 44. Rc8 {[%clk 0:01:11.1]} 44...
g5 {[%clk 0:01:44.7]} 45. hxg5 {[%clk 0:01:10.4]} 45... hxg5 {[%clk 0:01:45.4]}
46. Rc5 {[%clk 0:01:11.5]} 46... Kg6 {[%clk 0:01:41.7]} 47. Bd3 {[%clk
0:01:11.6]} 47... Ne4 {[%clk 0:01:40.1]} 48. g4 {[%clk 0:01:04.6]} 48... Nxc5
{[%clk 0:01:40.3]} 49. Bxf5+ {[%clk 0:01:04.1]} 49... Kf6 {[%clk 0:01:40.9]} 0-1

[Event "*** Titled Tuesday 3|2 Blitz"]
[Site "Chess.com"]
[Date "2015.10.06"]
[Round "3"]
[White "HansCoolNiemann"]
[Black "ilmago"]
[Result "1-0"]
[WhiteElo "2110"]
[BlackElo "1885"]
[TimeControl "180+2"]
[EndTime "17:33:46 PDT"]
[Termination "HansCoolNiemann won by resignation"]

1. d4 {[%clk 0:03:01.9]} 1... Nf6 {[%clk 0:03:00.2]} 2. c4 {[%clk 0:03:02.1]}
2... g6 {[%clk 0:03:01.4]} 3. Nc3 {[%clk 0:02:59.5]} 3... Bg7 {[%clk 0:03:02.8]}
4. e4 {[%clk 0:02:59.5]} 4... d6 {[%clk 0:03:04.3]} 5. Nf3 {[%clk 0:03:00.4]}
5... O-O {[%clk 0:03:05.8]} 6. Be2 {[%clk 0:03:01.8]} 6... e5 {[%clk 0:03:04.3]}
7. dxe5 {[%clk 0:03:02.1]} 7... dxe5 {[%clk 0:03:04.7]} 8. Qxd8 {[%clk 0:03:04]}
8... Rxd8 {[%clk 0:03:06.1]} 9. Bg5 {[%clk 0:03:04.3]} 9... Re8 {[%clk
0:03:05.1]} 10. O-O-O {[%clk 0:03:05.7]} 10... c6 {[%clk 0:03:03.5]} 11. Nxe5
{[%clk 0:03:02.1]} 11... Nxe4 {[%clk 0:02:50.4]} 12. Nxe4 {[%clk 0:03:00.7]}
12... Bxe5 {[%clk 0:02:49.4]} 13. Nd6 {[%clk 0:02:59.2]} 13... Bxd6 {[%clk
0:02:46.3]} 14. Rxd6 {[%clk 0:03:01.1]} 14... Be6 {[%clk 0:02:41.6]} 15. Rhd1
{[%clk 0:02:57.6]} 15... Na6 {[%clk 0:02:40.6]} 16. Be3 {[%clk 0:02:56.7]} 16...
Nc7 {[%clk 0:02:32]} 17. b3 {[%clk 0:02:52.9]} 17... Kg7 {[%clk 0:02:29.9]} 18.
Kb2 {[%clk 0:02:51.9]} 18... h5 {[%clk 0:02:27.6]} 19. Kc3 {[%clk 0:02:50.3]}
19... Bf5 {[%clk 0:02:22.2]} 20. Bf3 {[%clk 0:02:47.2]} 20... Re7 {[%clk
0:02:17.3]} 21. Bd4+ {[%clk 0:02:42]} 21... Kg8 {[%clk 0:02:10.6]} 22. Bf6
{[%clk 0:02:41.5]} 22... Re6 {[%clk 0:02:06.3]} 23. Rxe6 {[%clk 0:02:37.5]}
23... Nxe6 {[%clk 0:02:05.4]} 24. h3 {[%clk 0:02:36.6]} 24... Nc5 {[%clk
0:02:02.2]} 25. g4 {[%clk 0:02:27.5]} 25... Ne4+ {[%clk 0:01:58.8]} 26. Bxe4
{[%clk 0:02:23.9]} 26... Bxe4 {[%clk 0:01:59.7]} 27. gxh5 {[%clk 0:02:24]} 27...
gxh5 {[%clk 0:01:56]} 28. Rd7 {[%clk 0:02:23.9]} 28... Bf5 {[%clk 0:01:51.8]}
29. Rxb7 {[%clk 0:02:23.7]} 29... Bxh3 {[%clk 0:01:53.2]} 30. Kb4 {[%clk
0:02:22.4]} 30... Bg2 {[%clk 0:01:52.8]} 31. Kc5 {[%clk 0:02:22.7]} 31... a5
{[%clk 0:01:47.8]} 32. Re7 {[%clk 0:02:20.5]} 32... a4 {[%clk 0:01:47.2]} 33. b4
{[%clk 0:02:21.1]} 33... a3 {[%clk 0:01:43.7]} 34. Re5 {[%clk 0:02:20.7]} 34...
Bf3 {[%clk 0:01:39.9]} 35. b5 {[%clk 0:02:17.1]} 35... cxb5 {[%clk 0:01:36]} 36.
cxb5 {[%clk 0:02:19]} 36... Rc8+ {[%clk 0:01:35.7]} 37. Kb4 {[%clk 0:02:16.1]}
37... Rc2 {[%clk 0:01:35.1]} 38. Kxa3 {[%clk 0:02:16.2]} 38... Rxf2 {[%clk
0:01:35.8]} 39. b6 {[%clk 0:02:16.5]} 39... Rf1 {[%clk 0:01:30.2]} 40. Rf5
{[%clk 0:02:14.3]} 40... Rb1 {[%clk 0:01:02.9]} 41. Rxf3 {[%clk 0:02:12]} 41...
Rxb6 {[%clk 0:01:03.5]} 42. Ka4 {[%clk 0:02:09.7]} 42... Ra6+ {[%clk 0:01:03.7]}
43. Kb3 {[%clk 0:02:09.7]} 43... Kh7 {[%clk 0:01:04.6]} 44. a4 {[%clk
0:02:09.4]} 44... Kg6 {[%clk 0:01:05.2]} 45. Bh4 {[%clk 0:02:09.6]} 45... Re6
{[%clk 0:01:01.3]} 46. a5 {[%clk 0:02:08.5]} 46... Re4 {[%clk 0:01:00.8]} 47.
Bf2 {[%clk 0:02:08.2]} 47... Kg5 {[%clk 0:00:58.9]} 48. a6 {[%clk 0:02:07.7]}
48... Re6 {[%clk 0:00:59]} 49. a7 {[%clk 0:02:08]} 49... Ra6 {[%clk 0:00:59.8]}
50. Rxf7 {[%clk 0:02:08.2]} 50... h4 {[%clk 0:01:00.4]} 51. Rf8 {[%clk
0:02:02.7]} 51... h3 {[%clk 0:00:57.8]} 52. a8=Q {[%clk 0:02:01.7]} 52... Rxa8
{[%clk 0:00:56.1]} 53. Rxa8 {[%clk 0:02:03.6]} 53... Kg4 {[%clk 0:00:56.8]} 54.
Rh8 {[%clk 0:02:04.1]} 1-0

[Event "*** Titled Tuesday 3|2 Blitz"]
[Site "Chess.com"]
[Date "2015.10.06"]
[Round "3"]
[White "josiwales"]
[Black "HubertKnott"]
[Result "0-1"]
[WhiteElo "2051"]
[BlackElo "1979"]
[TimeControl "180+2"]
[EndTime "17:33:54 PDT"]
[Termination "HubertKnott won by resignation"]

1. e4 {[%clk 0:02:57.1]} 1... e5 {[%clk 0:02:52.9]} 2. Nf3 {[%clk 0:02:50.8]}
2... Nc6 {[%clk 0:02:53.7]} 3. Bb5 {[%clk 0:02:51.4]} 3... a6 {[%clk 0:02:54.9]}
4. Ba4 {[%clk 0:02:51.7]} 4... Nf6 {[%clk 0:02:56.1]} 5. O-O {[%clk 0:02:46.5]}
5... Be7 {[%clk 0:02:57.1]} 6. Re1 {[%clk 0:02:43.7]} 6... b5 {[%clk 0:02:58.1]}
7. Bb3 {[%clk 0:02:43.1]} 7... d6 {[%clk 0:02:59.8]} 8. c3 {[%clk 0:02:42.3]}
8... O-O {[%clk 0:03:00.9]} 9. h3 {[%clk 0:02:43.6]} 9... Na5 {[%clk 0:03:01.9]}
10. Bc2 {[%clk 0:02:44.8]} 10... c5 {[%clk 0:03:02.9]} 11. d3 {[%clk 0:02:46.3]}
11... Qc7 {[%clk 0:03:03.7]} 12. Be3 {[%clk 0:02:48]} 12... Nc6 {[%clk
0:02:55.3]} 13. Nbd2 {[%clk 0:02:48.9]} 13... a5 {[%clk 0:02:55.5]} 14. Nf1
{[%clk 0:02:49.3]} 14... g6 {[%clk 0:02:56.3]} 15. g4 {[%clk 0:02:50]} 15... Rd8
{[%clk 0:02:49.3]} 16. Ng3 {[%clk 0:02:47]} 16... d5 {[%clk 0:02:44.8]} 17. exd5
{[%clk 0:02:45.1]} 17... Nxd5 {[%clk 0:02:43.8]} 18. d4 {[%clk 0:02:43]} 18...
Nxe3 {[%clk 0:02:41.5]} 19. Rxe3 {[%clk 0:02:40.9]} 19... cxd4 {[%clk
0:02:32.4]} 20. cxd4 {[%clk 0:02:41.7]} 20... Nxd4 {[%clk 0:02:27.4]} 21. Be4
{[%clk 0:02:29.4]} 21... Bb7 {[%clk 0:01:53.5]} 22. Kg2 {[%clk 0:02:07.2]} 22...
Bxe4 {[%clk 0:01:49.3]} 23. Nxe4 {[%clk 0:02:09.1]} 23... Nc2 {[%clk 0:01:04.3]}
24. Qc1 {[%clk 0:02:00.2]} 24... Nxe3+ {[%clk 0:00:57.6]} 25. Qxe3 {[%clk
0:02:02.1]} 25... Rac8 {[%clk 0:00:53.4]} 26. g5 {[%clk 0:01:59.1]} 26... Qc2
{[%clk 0:00:49.9]} 27. Re1 {[%clk 0:01:47.3]} 27... Bc5 {[%clk 0:00:40.9]} 28.
Nxc5 {[%clk 0:01:15.1]} 28... Qxc5 {[%clk 0:00:41.1]} 29. Qe4 {[%clk 0:01:15.4]}
29... Qd5 {[%clk 0:00:37.6]} 30. Qh4 {[%clk 0:01:09.9]} 30... Re8 {[%clk
0:00:26.9]} 31. Re3 {[%clk 0:01:01.6]} 31... Rc5 {[%clk 0:00:20.4]} 32. Kg3
{[%clk 0:00:59.4]} 32... e4 {[%clk 0:00:16.4]} 33. Nh2 {[%clk 0:01:00.1]} 33...
Qe5+ {[%clk 0:00:15]} 34. Kg2 {[%clk 0:00:58]} 34... Qxg5+ {[%clk 0:00:14.8]}
35. Qxg5 {[%clk 0:00:58.3]} 35... Rxg5+ {[%clk 0:00:15.7]} 36. Ng4 {[%clk
0:00:59.8]} 36... f5 {[%clk 0:00:16.4]} 0-1

[Event "*** Titled Tuesday 3|2 Blitz"]
[Site "Chess.com"]
[Date "2015.10.06"]
[Round "3"]
[White "MFBerna"]
[Black "chesstatour"]
[Result "1-0"]
[WhiteElo "2141"]
[BlackElo "1867"]
[TimeControl "180+2"]
[EndTime "17:34:26 PDT"]
[Termination "MFBerna won by checkmate"]

1. e4 {[%clk 0:02:52.9]} 1... c6 {[%clk 0:02:59.6]} 2. d4 {[%clk 0:02:51.9]}
2... d5 {[%clk 0:03:01.5]} 3. Nc3 {[%clk 0:02:52.9]} 3... dxe4 {[%clk
0:03:02.4]} 4. Nxe4 {[%clk 0:02:54.8]} 4... Nf6 {[%clk 0:03:04.1]} 5. Ng5 {[%clk
0:02:53.1]} 5... Bf5 {[%clk 0:03:03.7]} 6. Bc4 {[%clk 0:02:50]} 6... e6 {[%clk
0:03:03.3]} 7. N5f3 {[%clk 0:02:49.7]} 7... Nbd7 {[%clk 0:02:46.1]} 8. Ne2
{[%clk 0:02:36.8]} 8... Bd6 {[%clk 0:02:44]} 9. O-O {[%clk 0:02:25.3]} 9... Qc7
{[%clk 0:02:40.9]} 10. Ng3 {[%clk 0:02:22.1]} 10... Bg6 {[%clk 0:02:40.6]} 11.
Qe2 {[%clk 0:02:19.9]} 11... O-O {[%clk 0:02:20.8]} 12. c3 {[%clk 0:02:15.5]}
12... Rad8 {[%clk 0:02:19.3]} 13. Bg5 {[%clk 0:02:14.4]} 13... h6 {[%clk
0:02:15.3]} 14. Bh4 {[%clk 0:02:10.5]} 14... Rde8 {[%clk 0:01:50.3]} 15. Bd3
{[%clk 0:01:51.7]} 15... Bxd3 {[%clk 0:01:48.1]} 16. Qxd3 {[%clk 0:01:52.4]}
16... Nd5 {[%clk 0:01:36.3]} 17. Ne4 {[%clk 0:01:41]} 17... Bf4 {[%clk
0:00:43.9]} 18. c4 {[%clk 0:01:31.5]} 18... Ne7 {[%clk 0:00:28.2]} 19. g3 {[%clk
0:01:18.2]} 19... g5 {[%clk 0:00:06.5]} 20. gxf4 {[%clk 0:01:15.2]} 20... gxh4
{[%clk 0:00:06.3]} 21. Ne5 {[%clk 0:01:16.3]} 21... f5 {[%clk 0:00:06.5]} 22.
Nd2 {[%clk 0:01:12.1]} 22... Nxe5 {[%clk 0:00:07.1]} 23. fxe5 {[%clk 0:01:11.5]}
23... Ng6 {[%clk 0:00:07.9]} 24. Qf3 {[%clk 0:01:09.4]} 24... Kh7 {[%clk
0:00:09]} 25. Kh1 {[%clk 0:01:09.9]} 25... Rd8 {[%clk 0:00:09.2]} 26. Nb3 {[%clk
0:01:08.6]} 26... b6 {[%clk 0:00:07.1]} 27. Rg1 {[%clk 0:01:09.4]} 27... c5
{[%clk 0:00:08.5]} 28. Qh5 {[%clk 0:01:02]} 28... Rg8 {[%clk 0:00:08.1]} 29.
Rad1 {[%clk 0:00:42.4]} 29... cxd4 {[%clk 0:00:07.5]} 30. Nxd4 {[%clk
0:00:43.4]} 30... Qxc4 {[%clk 0:00:07.6]} 31. Nxf5 {[%clk 0:00:20.7]} 31... Rxd1
{[%clk 0:00:07.1]} 32. Qxh6# {[%clk 0:00:20.7]} 1-0

[Event "*** Titled Tuesday 3|2 Blitz"]
[Site "Chess.com"]
[Date "2015.10.06"]
[Round "3"]
[White "komaromy31"]
[Black "UltimateCrusher2"]
[Result "0-1"]
[WhiteElo "1888"]
[BlackElo "2028"]
[TimeControl "180+2"]
[EndTime "17:34:44 PDT"]
[Termination "UltimateCrusher2 won by resignation"]

1. d4 {[%clk 0:03:01.9]} 1... Nf6 {[%clk 0:03:00.7]} 2. c4 {[%clk 0:03:03.1]}
2... e6 {[%clk 0:02:51.4]} 3. Nc3 {[%clk 0:02:54.3]} 3... Bb4 {[%clk 0:02:51.8]}
4. f3 {[%clk 0:02:52.2]} 4... c5 {[%clk 0:02:51.7]} 5. d5 {[%clk 0:02:52.6]}
5... O-O {[%clk 0:02:51.1]} 6. e4 {[%clk 0:02:53.9]} 6... Re8 {[%clk 0:02:51.9]}
7. Ne2 {[%clk 0:02:54.5]} 7... d6 {[%clk 0:02:39]} 8. Be3 {[%clk 0:02:47.1]}
8... a6 {[%clk 0:02:27.7]} 9. Ng3 {[%clk 0:02:29.2]} 9... exd5 {[%clk
0:02:26.3]} 10. cxd5 {[%clk 0:02:27.7]} 10... b5 {[%clk 0:02:27.9]} 11. a3
{[%clk 0:02:25.2]} 11... Ba5 {[%clk 0:02:28.2]} 12. Be2 {[%clk 0:02:22]} 12...
Nbd7 {[%clk 0:02:27.9]} 13. O-O {[%clk 0:02:21.7]} 13... Bb6 {[%clk 0:02:28.6]}
14. Nf5 {[%clk 0:02:21.6]} 14... c4 {[%clk 0:02:22.4]} 15. Bxb6 {[%clk
0:02:16.7]} 15... Qxb6+ {[%clk 0:02:24.3]} 16. Qd4 {[%clk 0:02:16.8]} 16... Nc5
{[%clk 0:02:18.3]} 17. Rae1 {[%clk 0:02:02]} 17... Bxf5 {[%clk 0:02:16.8]} 18.
exf5 {[%clk 0:02:03.2]} 18... Na4 {[%clk 0:01:42]} 19. Qxb6 {[%clk 0:01:47]}
19... Nxb6 {[%clk 0:01:43.9]} 20. Ne4 {[%clk 0:01:47.8]} 20... Nxe4 {[%clk
0:01:40.7]} 21. fxe4 {[%clk 0:01:48.8]} 21... Rxe4 {[%clk 0:01:41]} 22. Bf3
{[%clk 0:01:50.3]} 22... Ree8 {[%clk 0:01:38]} 23. Kf2 {[%clk 0:01:46.6]} 23...
f6 {[%clk 0:01:39.2]} 24. Re6 {[%clk 0:01:44.5]} 24... Rxe6 {[%clk 0:01:35.8]}
25. dxe6 {[%clk 0:01:44.9]} 25... d5 {[%clk 0:01:27.8]} 26. Rd1 {[%clk
0:01:43.5]} 26... Rd8 {[%clk 0:01:23.7]} 27. e7 {[%clk 0:01:44]} 27... Re8
{[%clk 0:01:24]} 28. Bxd5+ {[%clk 0:01:44.4]} 28... Nxd5 {[%clk 0:01:25.9]} 29.
Rxd5 {[%clk 0:01:44.8]} 29... Rxe7 {[%clk 0:01:27.8]} 30. Rd8+ {[%clk
0:01:37.5]} 30... Kf7 {[%clk 0:01:28.4]} 31. Ra8 {[%clk 0:01:38.4]} 31... Re5
{[%clk 0:01:28.7]} 32. g4 {[%clk 0:01:38.4]} 32... Rd5 {[%clk 0:01:29.6]} 33.
Ke2 {[%clk 0:01:35.4]} 33... Rd4 {[%clk 0:01:27.8]} 34. h3 {[%clk 0:01:33.5]}
34... Rd6 {[%clk 0:01:28.5]} 35. Ra7+ {[%clk 0:01:33.7]} 35... Kf8 {[%clk
0:01:16]} 36. Ra8+ {[%clk 0:01:32.9]} 36... Ke7 {[%clk 0:01:16.9]} 37. Ra7+
{[%clk 0:01:33.9]} 37... Rd7 {[%clk 0:01:18.1]} 38. Rxa6 {[%clk 0:01:35]} 38...
Rb7 {[%clk 0:01:19.1]} 39. Ke3 {[%clk 0:01:31.6]} 39... b4 {[%clk 0:01:15.8]}
40. a4 {[%clk 0:01:21.7]} 40... Rd7 {[%clk 0:01:12.2]} 41. Rc6 {[%clk
0:01:18.6]} 41... Rd3+ {[%clk 0:01:09.1]} 42. Ke4 {[%clk 0:01:08.4]} 42... Rxh3
{[%clk 0:01:09.9]} 43. Rxc4 {[%clk 0:01:08]} 43... Rb3 {[%clk 0:01:10.8]} 44.
Kd5 {[%clk 0:01:02.6]} 44... Rxb2 {[%clk 0:01:09]} 45. Kc5 {[%clk 0:01:03]}
45... b3 {[%clk 0:01:02.4]} 46. Kb4 {[%clk 0:01:01.8]} 46... h6 {[%clk
0:00:52.1]} 47. a5 {[%clk 0:00:59.4]} 47... Rb1 {[%clk 0:00:48.3]} 48. Rc7+
{[%clk 0:00:59.8]} 48... Kf8 {[%clk 0:00:48.8]} 49. Rc5 {[%clk 0:00:44.9]} 49...
b2 {[%clk 0:00:48.2]} 50. Kb3 {[%clk 0:00:44.3]} 50... Rc1 {[%clk 0:00:49.2]}
0-1